bitfinex/quotes_ETHUSD_20250702
["timestamp","ask_amount","ask_price","bid_price","bid_amount"]
[1751480628736,15.73011086,2573.6,2573.5,0.02]
[1751480629034,15.2592077,2573.6,2573.5,0.02]
[1751480629916,16.03913465,2573.6,2573.5,0.02]
[1751480630104,16.03913393,2573.6,2573.5,0.02]
[1751480630306,16.03929736,2573.6,2573.5,0.02]
[1751480630507,18.05067337,2573.6,2573.5,0.02]
[1751480631128,48.8304668,2573.6,2573.5,0.02]
[1751480631725,44.9448591,2573.6,2573.5,0.02]
[1751480631925,14.16506567,2573.6,2573.5,0.02]
[1751480632132,3.61506567,2573.6,2573.5,0.02]
[1751480632366,0.8236,2573.6,2573.5,0.02]
[1751480633273,0.7888,2573.7,2573.5,0.02]
[1751480634156,0.1936,2573.6,2573.5,0.02]
[1751480636652,1.0085,2573.6,2573.5,0.02]
[1751480636848,1.5585,2573.6,2573.5,0.02]
[1751480637045,12.71435,2573.6,2573.5,0.02]
[1751480637252,11.5585,2573.6,2573.5,0.02]
[1751480637560,46.22613567,2573.6,2573.5,0.02]
[1751480638155,54.21713567,2573.6,2573.5,0.02]
[1751480638874,50.33152797,2573.6,2573.5,0.02]
[1751480639027,16.35385221,2573.6,2573.5,0.02]
[1751480639228,16.35385221,2573.6,2573.4,0.02]
[1751480639229,15.22155869,2573.5,2573.4,0.02]
[1751480639528,16.00318068,2573.5,2573.4,0.02]
[1751480639724,42.11742199,2573.5,2573.4,0.02]
[1751480639966,3.8860607,2573.3,2573.2,0.02]
[1751480640163,60.01588868,2573.3,2573.2,0.02]
[1751480640351,4.43651379,2573.0,2572.9,0.02]
[1751480640663,53.21231379,2573.0,2572.9,0.02]
[1751480640863,53.99393578,2573.0,2572.9,0.02]
[1751480641067,57.33800769,2573.0,2572.9,0.02]
[1751480641273,27.33800769,2573.0,2572.9,0.02]
[1751480641566,57.33800769,2573.0,2572.9,0.02]
[1751480641880,27.33800769,2573.0,2572.9,0.02]
[1751480642241,57.33800769,2573.0,2572.9,0.02]
[1751480645054,56.5563857,2573.0,2572.9,0.02]
[1751480645572,57.33785042,2573.0,2572.9,0.02]
[1751480646078,3.34407191,2573.0,2572.9,0.02]
[1751480646280,0.19078581,2573.6,2572.9,0.02]
[1751480646281,0.78131208,2573.4,2572.9,0.02]
[1751480646463,3.88587815,2573.5,2572.9,0.813]
[1751480646666,7.995,2573.5,2572.9,0.813]
[1751480647963,11.88083522,2573.5,2572.9,0.813]
[1751480648167,7.995,2573.5,2572.9,0.813]
[1751480648357,10.26479106,2573.5,2572.9,0.813]
[1751480648756,10.8174,2573.7,2572.9,0.813]
[1751480649078,7.995,2573.8,2572.9,0.813]
[1751480649257,0.1936,2573.2,2572.9,0.813]
[1751480649841,0.1936,2573.5,2573.1,0.8327]
[1751480650875,30.0,2574.1,2573.0,0.8217]
[1751480651080,0.1936,2573.6,2573.2,0.8217]
[1751480651770,0.1936,2573.6,2573.3,0.8304]
[1751480652080,0.1936,2573.9,2573.5,4.90975415]
[1751480652285,0.1936,2573.9,2573.5,1.024]
[1751480652583,0.1936,2573.9,2573.6,0.68838262]
[1751480653247,0.1936,2573.9,2573.7,0.758]
[1751480653450,0.1936,2574.1,2573.7,0.9516]
[1751480654673,0.01,2574.5,2573.8,0.8052]
[1751480654991,0.01,2574.5,2574.1,0.8052]
[1751480655148,0.01,2574.5,2574.3,0.8052]
[1751480659368,0.01,2574.5,2574.4,0.8314]
[1751480659572,0.01,2574.5,2574.4,22.89940024]
[1751480660169,0.01,2574.5,2574.4,14.90940024]
[1751480660362,0.01,2574.5,2574.4,24.87840024]
[1751480660595,0.01,2574.5,2574.4,28.89172448]
[1751480661019,0.01,2574.6,2574.5,14.64814936]
[1751480662304,0.01,2574.6,2574.5,20.7279]
[1751480662806,0.01,2574.6,2574.5,24.61214936]
[1751480663011,0.01,2574.6,2574.5,20.7279]
[1751480663193,0.01,2574.6,2574.5,22.13003452]
[1751480663598,0.01,2574.6,2574.5,26.01428388]
[1751480663921,0.01,2574.6,2574.5,22.13003452]
[1751480664085,0.01,2574.6,2574.5,22.12903452]
[1751480664584,0.01,2574.6,2574.5,12.16603452]
[1751480664781,0.01,2574.6,2574.5,12.12703452]
[1751480665185,0.01,2574.6,2574.5,22.12703452]
[1751480665422,0.01,2574.6,2574.5,26.01128388]
[1751480665616,0.01,2574.6,2574.5,22.12703452]
[1751480666197,0.01,2574.6,2574.5,22.12603452]
[1751480667126,0.01,2574.6,2574.5,26.01028388]
[1751480668021,0.01,2574.6,2574.5,12.16603452]
[1751480668431,0.01,2574.6,2574.5,22.13503452]
[1751480671214,0.01,2574.6,2574.5,16.88603452]
[1751480671398,0.01,2574.6,2574.5,26.85203452]
[1751480672102,0.01,2574.6,2574.5,4.72]
[1751480672428,0.01,2574.6,2574.5,9.963]
[1751480672625,0.01,2574.6,2574.5,9.964]
[1751480672829,0.01,2574.6,2574.3,0.1936]
[1751480673014,0.8352,2574.6,2574.1,1.972]
[1751480673324,0.1936,2574.2,2574.1,1.972]
[1751480673694,0.1936,2574.2,2574.1,9.97]
[1751480674500,0.8352,2574.6,2574.1,9.97]
[1751480674701,0.1936,2574.3,2574.2,0.8005]
[1751480676126,0.1936,2574.3,2574.1,9.97]
[1751480677044,0.7772,2574.3,2574.0,9.968]
[1751480677229,0.1936,2574.1,2574.0,9.968]
[1751480683242,0.1936,2574.1,2574.0,10.43419771]
[1751480683538,0.01,2574.6,2574.1,0.7807]
[1751480683844,0.2036,2574.6,2574.2,8.1936]
[1751480684012,0.2036,2574.6,2574.2,11.0429524]
[1751480689418,0.2036,2574.6,2574.2,8.1936]
[1751480691937,0.7675,2574.5,2574.2,8.002]
[1751480692133,4.65182843,2574.5,2574.1,6.695]
[1751480692469,4.65182843,2574.5,2574.1,12.721]
[1751480692634,4.65182843,2574.5,2574.1,12.741]
[1751480692834,4.3505882,2574.4,2574.1,12.74]
[1751480693042,0.46618284,2574.4,2574.1,12.74]
[1751480693441,0.7675,2574.5,2574.1,4.74]
[1751480693665,0.7675,2574.5,2574.1,12.74]
[1751480694067,0.1936,2574.3,2574.1,12.74]
[1751480694253,0.01,2574.6,2574.1,13.5714]
[1751480694564,0.1936,2574.5,2574.1,13.5714]
[1751480694939,0.1936,2574.5,2574.1,8.8514]
[1751480697248,0.1936,2574.5,2574.1,9.9534]
[1751480697879,0.1936,2574.5,2574.1,2.613435]
[1751480698177,0.1936,2574.5,2574.1,1.511435]
[1751480698390,0.01,2574.6,2574.1,1.511435]
[1751480698700,0.2036,2574.6,2574.2,0.1936]
[1751480700465,0.1936,2574.3,2574.0,2.75835]
[1751480700671,0.1936,2574.3,2574.1,1.975]
[1751480702190,0.7584,2574.5,2574.1,1.975]
[1751480708265,0.01,2574.6,2574.1,1.975]
[1751480708477,0.1936,2574.3,2574.1,1.975]
[1751480708676,0.1936,2574.3,2574.2,1.972]
[1751480710279,0.1936,2574.3,2574.1,1.972]
[1751480714797,0.1936,2574.3,2574.0,3.50945]
[1751480715076,0.1936,2574.3,2574.1,1.972]
[1751480719905,0.1936,2574.3,2574.0,2.77835]
[1751480719906,0.1936,2574.3,2574.0,4.75035]
[1751480728017,0.2036,2574.3,2574.0,2.77835]
[1751480728315,0.2036,2574.3,2574.0,4.75035]
[1751480728516,0.2036,2574.3,2574.0,5.23293587]
[1751480728921,0.01,2574.3,2574.1,9.24484267]
[1751480729123,0.01,2574.3,2574.1,9.43844267]
[1751480730396,0.01,2574.3,2574.2,7.988]
[1751480730720,0.01,2574.3,2574.2,18.1816]
[1751480730887,0.01,2574.3,2574.2,22.19492424]
[1751480731524,0.01,2574.3,2574.2,31.59102628]
[1751480732600,0.01,2574.3,2574.2,33.13670453]
[1751480733013,0.01,2574.3,2574.2,31.59102628]
[1751480733318,0.01,2574.3,2574.2,33.13330489]
[1751480734112,0.01,2574.3,2574.2,40.91401328]
[1751480734296,0.01,2574.6,2574.5,3.88424936]
[1751480734496,0.01,2574.6,2574.5,38.36716369]
[1751480735100,0.01,2574.6,2574.5,40.2022018]
[1751480735928,0.01,2574.6,2574.5,41.6242018]
[1751480736301,0.01,2574.6,2574.5,40.08492042]
[1751480736502,0.01,2574.6,2574.5,13.05271876]
[1751480736734,0.01,2574.6,2574.5,22.71496203]
[1751480737111,0.01,2574.6,2574.5,12.75696203]
[1751480737318,0.01,2574.6,2574.5,22.71496203]
[1751480737507,0.01,2574.6,2574.5,26.59921139]
[1751480737923,0.01,2574.6,2574.5,22.71496203]
[1751480738332,0.01,2574.6,2574.5,26.59921139]
[1751480739037,0.01,2574.6,2574.5,22.71496203]
[1751480739239,0.01,2574.6,2574.5,26.59921139]
[1751480739439,0.01,2574.6,2574.5,27.43496203]
[1751480739930,0.01,2574.6,2574.5,27.43296203]
[1751480742939,0.01,2574.6,2574.5,31.31721139]
[1751480744423,0.01,2574.6,2574.5,31.86721139]
[1751480744619,0.01,2575.4,2574.8,5.20459679]
[1751480744822,0.01,2575.7,2575.4,10.7708]
[1751480745053,0.01,2575.7,2575.6,10.1936]
[1751480745624,0.01,2575.7,2575.6,10.1486]
[1751480745819,0.01,2575.7,2575.4,0.7708]
[1751480746143,0.01,2575.7,2575.6,10.0]
[1751480746466,0.01,2575.7,2575.5,10.1476]
[1751480746621,0.01,2575.7,2575.5,0.1936]
[1751480746824,0.7862,2575.7,2575.2,10.0]
[1751480747135,0.9798,2575.7,2575.3,0.1936]
[1751480747331,0.9798,2575.7,2575.4,9.953]
[1751480748554,0.9798,2575.7,2575.5,9.953]
[1751480749053,0.2036,2575.7,2575.5,9.953]
[1751480749226,0.01,2575.7,2575.6,0.9441]
[1751480750326,0.01,2575.7,2575.6,0.1936]
[1751480750533,0.01,2575.7,2575.6,9.953]
[1751480750760,0.2036,2575.7,2575.3,0.1936]
[1751480751067,0.2036,2575.7,2575.6,1.97]
[1751480751275,0.2036,2575.7,2575.6,9.953]
[1751480752765,0.2036,2575.7,2575.3,0.1936]
[1751480752931,0.8234,2575.6,2575.4,9.953]
[1751480753131,1.017,2575.6,2575.4,1.97]
[1751480753864,1.017,2575.6,2575.5,1.97]
[1751480756233,1.017,2575.6,2575.4,1.97]
[1751480759554,0.1936,2575.6,2575.4,1.97]
[1751480759866,0.01,2575.7,2575.4,1.97]
[1751480760057,0.01,2575.7,2575.5,7.982]
[1751480760961,0.01,2575.7,2575.6,0.1936]
[1751480762740,0.01,2575.7,2575.6,10.985]
[1751480763137,0.01,2575.7,2575.6,10.1456]
[1751480763764,0.01,2575.7,2575.6,1.97]
[1751480763976,0.01,2575.7,2575.4,0.1936]
[1751480764176,13.37886157,2575.5,2575.1,1.97]
[1751480764350,13.18526157,2575.5,2575.4,0.02]
[1751480764759,13.98256157,2575.5,2575.4,0.02]
[1751480767140,0.7973,2575.5,2575.4,0.02]
[1751480771392,0.9909,2575.5,2575.4,0.02]
[1751480772675,0.1936,2575.5,2575.4,0.02]
[1751480774112,0.55,2575.3,2574.9,0.02]
[1751480774384,0.1936,2575.0,2574.9,0.02]
[1751480776058,0.1936,2575.3,2574.9,0.2136]
[1751480776368,0.7701,2575.4,2574.9,0.02]
[1751480776564,0.1936,2575.0,2574.9,0.02]
[1751480778892,1.0242,2575.0,2574.9,0.02]
[1751480779099,4.90769514,2575.0,2574.9,0.02]
[1751480779454,1.0242,2575.0,2574.9,0.02]
[1751480779659,1.51494555,2575.0,2574.9,0.02]
[1751480782260,5.39844069,2575.0,2574.9,0.02]
[1751480782460,5.94844069,2575.0,2574.9,0.02]
[1751480782688,1.51494555,2575.0,2574.9,0.02]
[1751480782872,1.32134555,2575.0,2574.9,0.02]
[1751480783179,0.8306,2575.0,2574.9,0.02]
[1751480784685,0.773,2575.3,2574.9,0.02]
[1751480786095,13.73526157,2575.2,2574.9,0.02]
[1751480786398,3.88349514,2575.0,2574.9,0.02]
[1751480786559,5.64537081,2575.0,2574.9,0.02]
[1751480786976,1.76187567,2575.0,2574.9,0.02]
[1751480787386,5.64537081,2575.0,2574.9,0.02]
[1751480787761,6.19537081,2575.0,2574.9,0.02]
[1751480787957,7.00187081,2575.0,2574.9,0.02]
[1751480788163,3.11837567,2575.0,2574.9,0.02]
[1751480788385,7.00187081,2575.0,2574.9,0.02]
[1751480792483,7.76607687,2575.0,2574.9,0.02]
[1751480795607,17.76607687,2575.0,2574.9,0.02]
[1751480797202,17.00187081,2575.0,2574.9,0.02]
[1751480797799,25.4646201,2575.0,2574.9,0.02]
[1751480799793,4.64507342,2574.5,2574.3,0.02]
[1751480799989,8.46274929,2574.4,2574.3,0.02]
[1751480800172,12.34714953,2574.4,2574.3,0.02]
[1751480800675,12.89714953,2574.4,2574.3,0.02]
[1751480803209,42.89714953,2574.4,2574.3,0.02]
[1751480803375,9.01274929,2574.4,2574.3,0.02]
[1751480803580,10.28514495,2574.4,2574.3,0.02]
[1751480803911,8.46274929,2574.4,2574.3,0.02]
[1751480805921,8.45150734,2574.5,2574.3,0.02]
[1751480808929,7.987,2574.5,2574.3,0.02]
[1751480809125,7.987,2574.7,2574.3,0.02]
[1751480810006,0.1936,2574.5,2574.4,0.7604]
[1751480810237,0.1936,2574.6,2574.4,0.7604]
[1751480811598,0.1936,2574.6,2574.4,1.03564]
[1751480811929,0.1936,2574.7,2574.4,1.03564]
[1751480812300,0.1936,2574.7,2574.5,0.764]
[1751480814904,0.1936,2574.7,2574.6,1.971]
[1751480816537,0.01,2574.9,2574.6,1.971]
[1751480816826,0.01,2574.9,2574.7,0.7519]
[1751480819350,0.01,2574.9,2574.8,0.9705]
[1751480821414,0.01,2574.9,2574.8,2.9415]
[1751480821743,0.01,2574.9,2574.8,2.1646]
[1751480822047,0.01,2574.9,2574.8,2.9415]
[1751480822245,0.01,2574.9,2574.8,3.65139997]
[1751480822820,0.01,2574.9,2574.8,7.53519676]
[1751480823210,0.01,2574.9,2574.8,8.08519676]
[1751480823412,0.01,2575.4,2575.3,3.88304275]
[1751480823606,0.01,2575.4,2575.3,4.88424275]
[1751480823929,0.01,2575.4,2575.3,4.64744092]
[1751480824344,0.01,2575.4,2575.3,2.67644092]
[1751480824507,0.01,2575.4,2575.3,1.0012]
[1751480824928,0.01,2575.4,2575.3,2.9722]
[1751480826937,0.01,2575.4,2575.3,1.0012]
[1751480827148,0.01,2575.4,2575.3,2.9722]
[1751480827763,0.01,2575.4,2575.3,1.0012]
[1751480827966,0.01,2575.4,2575.3,2.9722]
[1751480828166,0.01,2575.4,2575.3,4.06782]
[1751480830150,0.01,2575.4,2575.3,7.95086275]
[1751480830870,0.01,2575.4,2575.3,17.95086275]
[1751480833072,0.01,2575.4,2575.3,18.50086275]
[1751480834555,0.01,2575.4,2575.3,15.97986275]
[1751480834869,0.01,2575.4,2575.3,25.93186275]
[1751480835071,0.01,2575.4,2575.3,2.09682]
[1751480835277,0.01,2575.4,2575.3,10.9532]
[1751480837170,0.01,2575.4,2575.3,1.0012]
[1751480837376,0.01,2575.4,2575.3,10.9532]
[1751480839976,0.01,2575.4,2575.3,14.83624275]
[1751480841950,0.01,2575.4,2575.3,1.0012]
[1751480842152,0.01,2575.4,2575.3,2.9702]
[1751480842357,0.01,2575.4,2575.3,10.9512]
[1751480842781,0.01,2575.4,2575.3,1.0012]
[1751480842996,0.01,2575.4,2575.3,10.1436]
[1751480844070,0.01,2575.4,2575.3,0.1936]
[1751480844272,0.01,2575.4,2575.3,10.1436]
[1751480845301,0.01,2575.4,2575.3,16.25961584]
[1751480845914,0.01,2575.4,2575.3,12.37657309]
[1751480846559,0.01,2575.4,2575.3,16.25961584]
[1751480847963,0.01,2575.4,2575.3,12.37657309]
[1751480850798,0.01,2575.4,2575.3,16.25961584]
[1751480851776,0.01,2575.4,2575.3,12.37657309]
[1751480853386,0.01,2575.4,2575.3,4.39557309]
[1751480853608,0.01,2575.4,2575.3,10.8967]
[1751480853866,0.01,2575.4,2575.3,0.1936]
[1751480854177,0.01,2575.4,2575.3,10.1446]
[1751480854973,0.01,2575.4,2575.3,0.1936]
[1751480855174,0.2036,2575.4,2575.1,7.981]
[1751480855380,1.62455603,2575.4,2575.0,9.951]
[1751480855685,1.62455603,2575.4,2575.0,1.97]
[1751480856000,0.7959,2575.3,2575.1,7.981]
[1751480858903,0.7959,2575.3,2575.1,9.951]
[1751480860088,0.7959,2575.3,2575.1,1.97]
[1751480862297,0.2036,2575.4,2575.1,1.97]
[1751480862697,0.01,2575.4,2575.1,1.97]
[1751480863972,0.01,2575.4,2575.2,7.982]
[1751480864307,0.01,2575.4,2575.2,9.0766]
[1751480864497,0.01,2575.4,2575.3,0.9925]
[1751480865800,0.01,2575.4,2575.3,4.87554275]
[1751480866202,0.01,2575.4,2575.3,14.86414275]
[1751480869115,0.01,2575.4,2575.3,20.9311]
[1751480869283,0.01,2575.4,2575.3,27.01671275]
[1751480870985,0.01,2575.4,2575.3,27.56671275]
[1751480872013,0.01,2575.4,2575.3,32.28671275]
[1751480874815,0.01,2575.4,2575.3,21.78671275]
[1751480875020,0.01,2575.4,2575.3,27.85267]
[1751480875215,0.01,2575.4,2575.3,31.73571275]
[1751480876735,0.01,2575.4,2575.3,27.85267]
[1751480877217,0.01,2575.4,2575.3,31.73571275]
[1751480878423,0.01,2575.4,2575.3,27.01571275]
[1751480880339,0.01,2575.4,2575.3,31.73571275]
[1751480880516,0.01,2575.4,2575.3,32.28571275]
[1751480881539,0.01,2575.4,2575.3,34.58532147]
[1751480881933,0.01,2575.4,2575.3,32.28571275]
[1751480882322,0.01,2575.4,2575.3,34.58532147]
[1751480882751,0.01,2575.4,2575.3,22.33671275]
[1751480883136,0.01,2575.4,2575.3,32.28471275]
[1751480883312,0.01,2575.4,2575.3,15.15267]
[1751480883512,0.01,2575.4,2575.3,22.34417]
[1751480884832,0.01,2575.4,2575.3,12.39617]
[1751480885030,0.01,2575.4,2575.3,22.34417]
[1751480885438,0.01,2575.4,2575.3,4.36517]
[1751480885619,0.01,2575.4,2575.3,2.1626]
[1751480885941,0.01,2575.4,2575.3,10.1416]
[1751480888249,0.01,2575.4,2575.3,8.1726]
[1751480898235,0.01,2575.4,2575.3,12.82604275]
[1751480898467,0.01,2575.4,2575.3,14.69387324]
[1751480900938,0.01,2575.4,2575.3,10.81083049]
[1751480902176,0.01,2575.4,2575.3,2.83183049]
[1751480902472,0.01,2575.4,2575.3,2.1616]
[1751480902769,0.01,2575.4,2575.3,10.1396]
[1751480905177,0.01,2575.4,2575.3,14.8596]
[1751480906168,0.01,2575.4,2575.3,4.9136]
[1751480906372,0.01,2575.4,2575.3,14.8596]
[1751480906578,0.01,2575.4,2575.3,16.81504404]
[1751480910579,0.01,2575.4,2575.3,6.86904404]
[1751480910762,0.01,2575.4,2575.3,4.9136]
[1751480911076,0.01,2575.4,2575.3,14.8586]
[1751480912567,0.01,2575.4,2575.3,4.9136]
[1751480912771,0.01,2575.4,2575.3,14.8586]
[1751480914380,0.01,2575.4,2575.3,6.8816]
[1751480914558,0.01,2575.4,2575.3,4.9136]
[1751480914761,0.01,2575.4,2575.3,14.8586]
[1751480916862,0.01,2575.4,2575.3,10.1386]
[1751480917352,0.01,2575.4,2575.3,11.15246]
[1751480917552,0.01,2575.4,2575.3,11.98106]
[1751480919780,0.01,2575.4,2575.3,0.1936]
[1751480920288,0.01,2575.4,2575.3,7.976]
[1751480920868,0.8089,2575.3,2575.2,1.968]
[1751480921068,4.88554275,2575.3,2575.2,1.968]
[1751480921483,3.88341306,2575.1,2574.9,0.02]
[1751480921708,14.18975835,2575.0,2574.9,0.02]
[1751480922791,18.07325349,2575.0,2574.9,0.02]
[1751480923156,18.8469534,2575.0,2574.9,0.02]
[1751480923389,28.07325349,2575.0,2574.9,0.02]
[1751480923571,31.86786905,2575.0,2574.9,0.02]
[1751480924082,32.64080054,2575.0,2574.9,0.02]
[1751480924278,31.86786905,2575.0,2574.9,0.02]
[1751480924495,32.64023055,2575.0,2574.9,0.02]
[1751480927392,31.86786905,2575.0,2574.9,0.02]
[1751480927594,27.98437391,2575.0,2574.9,0.02]
[1751480928601,31.86786905,2575.0,2574.9,0.02]
[1751480929094,27.98437391,2575.0,2574.9,0.02]
[1751480929293,27.43437391,2575.0,2574.9,0.02]
[1751480929702,35.41237391,2575.0,2574.9,0.02]
[1751480930613,39.84586905,2575.0,2574.9,0.02]
[1751480931595,35.96237391,2575.0,2574.9,0.02]
[1751480931996,35.97237391,2575.0,2574.9,0.02]
[1751480933299,39.85586905,2575.0,2574.9,0.02]
[1751480934304,35.97237391,2575.0,2574.9,0.02]
[1751480934771,35.42237391,2575.0,2574.9,0.02]
[1751480935800,30.69605722,2575.0,2574.9,0.02]
[1751480943730,22.71805722,2575.0,2574.9,0.02]
[1751480944807,11.90915722,2575.0,2574.9,0.02]
[1751480944971,0.2036,2575.0,2574.9,0.02]
[1751480945779,0.01,2575.0,2574.9,0.02]
[1751480946607,0.01,2575.0,2574.9,0.814]
[1751480946796,0.01,2575.0,2574.9,6.66564596]
[1751480947599,0.01,2575.0,2574.9,11.38564596]
[1751480948003,0.01,2575.0,2574.9,12.93394206]
[1751480948726,0.01,2575.0,2574.9,22.93394206]
[1751480950517,0.01,2575.0,2574.9,30.90794206]
[1751480953130,0.01,2575.0,2574.9,31.45794206]
[1751480954132,0.01,2575.0,2574.9,20.96594206]
[1751480954437,0.01,2575.0,2574.9,31.80394206]
[1751480959167,0.01,2575.0,2574.9,21.86594206]
[1751480959468,0.01,2575.0,2574.9,31.80194206]
[1751480962584,0.01,2575.0,2574.9,21.86594206]
[1751480962853,0.01,2575.0,2574.9,31.80194206]
[1751480970156,0.01,2575.7,2575.4,0.8322]
[1751480970358,0.01,2575.7,2575.4,4.71502627]
[1751480970559,0.01,2576.1,2575.6,10.8322]
[1751480970855,0.7768,2576.7,2575.9,0.8274]
[1751480971058,0.7768,2576.7,2575.9,4.70938772]
[1751480971258,0.7768,2576.7,2576.0,19.95]
[1751480971432,0.7768,2576.7,2576.0,10.0]
[1751480971634,1.72316967,2576.7,2576.1,9.95]
[1751480971836,9.24534166,2576.6,2576.2,1.965]
[1751480972036,0.7844,2576.5,2576.2,1.965]
[1751480972366,0.8192,2576.2,2576.0,9.95]
[1751480972560,1.74721417,2576.2,2575.5,14.64926088]
[1751480972857,1.74721417,2576.2,2575.6,9.951]
[1751480973029,1.74721417,2576.2,2575.7,9.952]
[1751480973226,1.74721417,2576.2,2575.7,1.965]
[1751480973430,0.7617,2576.1,2575.7,9.951]
[1751480973730,1.78251558,2576.1,2575.7,9.951]
[1751480974126,1.78251558,2576.1,2575.7,1.965]
[1751480975454,0.7617,2576.1,2575.7,1.965]
[1751480977456,0.757,2576.0,2575.6,1.965]
[1751480977660,0.757,2575.8,2575.1,0.7807]
[1751480977863,0.757,2575.8,2575.5,1.965]
[1751480980962,0.1936,2575.5,2575.3,1.965]
[1751480981176,0.762,2575.4,2575.3,1.965]
[1751480983228,1.87789417,2575.4,2575.3,1.965]
[1751480984171,1.11589417,2575.4,2575.0,9.351]
[1751480984376,8.46094166,2575.2,2575.0,9.351]
[1751480984544,8.46094166,2575.2,2575.0,0.02]
[1751480984868,0.8267,2575.3,2575.0,0.02]
[1751480985069,1.02099358,2575.2,2575.0,0.02]
[1751480986435,0.1936,2575.1,2575.0,0.02]
[1751480987479,10.0,2575.7,2575.0,0.02]
[1751480987634,0.1936,2575.4,2575.0,0.02]
[1751480990572,0.1936,2575.4,2575.1,3.88334433]
[1751480990871,0.01,2576.1,2575.7,3.88237466]
[1751480991038,0.01,2576.1,2575.8,0.7979]
[1751480991400,0.01,2576.1,2575.8,10.9525]
[1751480992886,0.01,2576.1,2575.8,14.83468687]
[1751480993063,0.01,2576.1,2575.8,16.70640827]
[1751480993264,0.01,2576.1,2575.9,3.88210907]
[1751480993660,0.01,2576.1,2575.9,3.88212778]
[1751480993877,0.01,2576.1,2575.8,21.42640986]
[1751480994074,0.01,2576.1,2575.8,6.7853214]
[1751480994261,0.01,2576.1,2575.9,1.968]
[1751480994454,0.7946,2576.1,2575.9,1.968]
[1751480994655,0.7946,2576.1,2575.6,1.968]
[1751480994855,0.1936,2575.8,2575.6,1.968]
[1751480995057,0.1936,2575.8,2575.5,7.993]
[1751480995058,0.1936,2575.8,2575.7,1.968]
[1751480995287,0.1936,2575.8,2575.6,1.968]
[1751480995980,0.7946,2576.1,2575.6,1.968]
[1751480996492,0.1936,2575.7,2575.6,1.968]
[1751480998094,0.1936,2575.9,2575.6,1.968]
[1751480999691,0.1936,2575.9,2575.6,3.37174791]
[1751480999867,0.1936,2576.0,2575.6,4.31794791]
[1751481000979,0.1936,2576.0,2575.6,9.03794791]
[1751481001178,0.01,2576.1,2575.8,0.1936]
[1751481001392,0.01,2576.1,2575.8,12.06481884]
[1751481001561,0.01,2576.1,2576.0,0.7526]
[1751481001756,0.01,2576.1,2576.0,0.9462]
[1751481001997,0.01,2576.1,2576.0,4.82818757]
[1751481002663,0.01,2576.1,2576.0,9.54818757]
[1751481003664,0.01,2576.1,2576.0,5.6662]
[1751481003865,0.01,2576.1,2576.0,16.31446819]
[1751481004764,0.01,2576.1,2576.0,16.35346819]
[1751481004966,0.01,2576.1,2576.0,26.31346819]
[1751481005590,0.01,2576.1,2576.0,21.59346819]
[1751481005891,0.01,2576.1,2576.0,11.63346819]
[1751481006196,0.01,2576.1,2576.0,21.59246819]
[1751481007708,0.01,2576.1,2576.0,0.1936]
[1751481007905,0.01,2576.1,2576.0,1.967]
[1751481008477,0.7748,2576.1,2576.0,1.967]
[1751481009701,0.01,2576.1,2576.0,1.967]
[1751481013611,0.01,2576.1,2575.9,0.1936]
[1751481013786,0.01,2576.1,2576.0,1.975]
[1751481015981,0.01,2576.1,2575.7,0.1936]
[1751481016187,0.01,2576.1,2575.8,9.965]
[1751481016418,0.2036,2576.1,2575.8,9.965]
[1751481017186,0.2036,2576.1,2575.8,10.58917364]
[1751481017389,0.01,2576.1,2575.8,10.58917364]
[1751481018938,0.01,2576.1,2575.9,0.8072]
[1751481019995,0.01,2576.1,2576.0,1.975]
[1751481020689,0.01,2576.1,2575.7,5.19971512]
[1751481020890,0.01,2576.1,2575.8,9.959]
[1751481021086,0.2036,2576.1,2575.8,9.959]
[1751481021392,0.7927,2576.0,2575.8,9.959]
[1751481021909,0.2036,2576.1,2575.8,9.959]
[1751481022096,0.2036,2576.1,2575.7,4.72]
[1751481022296,0.2036,2576.1,2575.8,11.21276]
[1751481023792,0.2036,2576.1,2575.8,0.49136]
[1751481023997,0.2036,2576.1,2575.9,1.975]
[1751481027434,0.7648,2576.0,2575.8,0.02]
[1751481029239,0.2036,2576.1,2575.8,0.02]
[1751481031123,0.2036,2576.1,2575.9,1.975]
[1751481031533,0.784,2576.0,2575.8,0.02]
[1751481031738,0.784,2576.0,2575.9,1.975]
[1751481031938,0.784,2576.0,2575.8,0.02]
[1751481032222,0.1936,2575.9,2575.8,0.02]
[1751481032622,0.9766,2575.9,2575.8,0.02]
[1751481032823,0.1936,2575.9,2575.8,0.02]
[1751481033255,0.793,2576.1,2575.8,0.02]
[1751481033457,0.9866,2576.1,2575.8,0.02]
[1751481033758,0.9866,2576.1,2575.8,1.995]
[1751481033936,0.9866,2576.1,2575.8,0.02]
[1751481034441,0.1936,2575.9,2575.8,0.02]
[1751481036160,0.2036,2576.1,2575.8,0.02]
[1751481037257,0.01,2576.1,2575.8,0.02]